[Event "FIDE WCCC Girls-10 2024"]
[Site "Montesilvano"]
[Date "2024.11.19"]
[Round "5.7"]
[White "Tselmuun, Ider"]
[Black "Khusnitdinova, Husnorakhon"]
[Result "1-0"]
[ECO "D02"]
[WhiteElo "1846"]
[BlackElo "1626"]
[Annotator "NA RC"]
[PlyCount "155"]
[EventDate "2024.11.18"]
[EventType "swiss"]
[EventCountry "ITA"]
[SourceTitle "playchess.com"]
[Source "ChessBase"]
[SourceQuality "1"]
[TimeControl "5400+30"]

1. d4 {[%emt 0:00:04]} Nf6 {[%emt 0:00:04]} 2. Nf3 {[%emt 0:00:15]} d5 {[%emt 0:00:06]} 3. g3 {[%emt 0:00:24]} Bf5 {[%emt 0:01:11]} 4. c4 {[%emt 0:03:15]} e6 {[%emt 0:02:12]} 5. Nc3 {[%emt 0:00:35]} Be7 {[%emt 0:01:30]} 6. Nh4 {[%emt 0:00:39]} Bg6 {[%emt 0:02:57]} 7. Nxg6 {[%emt 0:00:52]} hxg6 {[%emt 0:00:25]} 8. Qb3 {[%emt 0:00:39]} Nc6 {[%emt 0:01:32]} 9. cxd5 {[%emt 0:07:55]} exd5 {[%emt 0:03:44]} 10. e3 {[%emt 0:00:39]} Rb8 {[%emt 0:02:02]} 11. Bg2 {[%emt 0:01:32]} Na5 {[%emt 0:09:02]} 12. Qc2 {[%emt 0:03:19]} O-O {[%emt 0:02:31]} 13. O-O {[%emt 0:00:14]} Nc6 {[%emt 0:04:07]} 14. a3 {[%emt 0:03:22]} Qd7 {[%emt 0:02:36]} 15. b4 {[%emt 0:03:04]} b5 {[%emt 0:07:59]} 16. Bd2 {[%emt 0:03:25]} a6 {[%emt 0:00:31]} 17. Rac1 {[%emt 0:00:21]} Na7 {[%emt 0:04:29]} 18. Nd1 {[%emt 0:01:54]} c6 {[%emt 0:00:59]} 19. Nb2 {[%emt 0:00:08]} Rbc8 {[%emt 0:04:40]} 20. Nd3 {[%emt 0:01:31]} Ne8 {[%emt 0:06:22]} 21. Rfe1 {[%emt 0:01:16]} Nd6 {[%emt 0:02:49]} 22. Nc5 {[%emt 0:00:18]} Qd8 {[%emt 0:02:11]} 23. Nxa6 {[%emt 0:01:51]} Nc4 {[%emt 0:00:51]} 24. Ra1 {[%emt 0:02:26]} Ra8 {[%emt 0:03:24]} 25. Nc5 {[%emt 0:00:45]} Nc8 {[%emt 0:00:38]} 26. Bc1 {[%emt 0:16:35]} N8b6 {[%emt 0:03:13]} 27. Qb3 {[%emt 0:03:52]} Re8 {[%emt 0:03:38]} 28. Nd3 {[%emt 0:04:17]} Bf6 {[%emt 0:01:53]} 29. Rf1 {[%emt 0:00:42]} Ra7 {[%emt 0:00:50]} 30. Nb2 {[%emt 0:02:25]} Qa8 {[%emt 0:04:24]} 31. Nxc4 {[%emt 0:00:09]} Nxc4 {[%emt 0:00:05]} 32. Rd1 {[%emt 0:00:06]} Ra4 {[%emt 0:00:21]} 33. Bf1 {[%emt 0:03:10]} Be7 {[%emt 0:00:13]} 34. Bb2 {[%emt 0:00:08]} Nxb2 {[%emt 0:03:31]} 35. Qxb2 {[%emt 0:01:29]} Qa6 {[%emt 0:00:08]} 36. Qc3 {[%emt 0:03:52]} Bf8 {[%emt 0:06:26]} 37. Rdc1 {[%emt 0:05:40]} Re6 {[%emt 0:00:21]} 38. Bh3 {[%emt 0:00:19]} f5 {[%emt 0:00:17]} 39. g4 {[%emt 0:00:40]} Rf6 {[%emt 0:01:02]} 40. g5 {[%emt 0:02:16]} Re6 {[%emt 0:00:23]} 41. Bg2 {[%emt 0:00:26]} Qa8 {[%emt 0:02:18]} 42. Bf3 {[%emt 0:00:39]} Kh7 {[%emt 0:01:17]} 43. h4 {[%emt 0:00:22]} Be7 {[%emt 0:00:07]} 44. Kg2 {[%emt 0:00:11]} Qb8 {[%emt 0:02:00]} 45. Rh1 {[%emt 0:01:15]} Kg8 {[%emt 0:00:20]} 46. Bd1 {[%emt 0:01:07]} Ra6 {[%emt 0:00:22]} 47. f4 {[%emt 0:00:49]} Bf8 {[%emt 0:00:31]} 48. h5 {[%emt 0:23:18]} Qe8 {[%emt 0:01:56]} 49. Rh3 {[%emt 0:00:00]} gxh5 {[%emt 0:00:25]} 50. Bxh5 {[%emt 0:00:00]} g6 {[%emt 0:00:05]} 51. Be2 {[%emt 0:00:00]} Bg7 {[%emt 0:00:06]} 52. Kf2 {[%emt 0:00:00]} Ra7 {[%emt 0:01:39]} 53. Rah1 {[%emt 0:00:00]} Qa8 {[%emt 0:00:09]} 54. Ra1 {[%emt 0:00:00]} Ra6 {[%emt 0:00:38]} 55. Bd3 {[%emt 0:00:00]} Ra7 {[%emt 0:00:37]} 56. Bc2 {[%emt 0:00:00]} Ra6 {[%emt 0:00:26]} 57. Ra2 {[%emt 0:00:00]} Ra7 {[%emt 0:00:25]} 58. Qa1 {[%emt 0:00:00]} Bf8 {[%emt 0:00:44]} 59. Qc3 {[%emt 0:00:00]} Ra6 {[%emt 0:00:49]} 60. Rh1 {[%emt 0:00:00]} Ra7 {[%emt 0:00:43]} 61. Rh4 {[%emt 0:00:00]} Bg7 {[%emt 0:01:06]} 62. Rh3 {[%emt 0:00:00]} Bf8 {[%emt 0:00:20]} 63. Rh1 {[%emt 0:00:00]} Ree7 {[%emt 0:00:02]} 64. Kg2 {[%emt 0:00:00]} Qe8 {[%emt 0:00:38]} 65. Rh3 {[%emt 0:00:27]} Qa8 {[%emt 0:00:01]} 66. Ra1 {[%emt 0:00:56]} Rh7 {[%emt 0:00:18]} 67. Rxh7 {[%emt 0:01:02]} Kxh7 {[%emt 0:00:05]} 68. e4 {[%emt 0:02:16]} dxe4 {[%emt 0:00:58]} 69. Rh1+ {[%emt 0:00:05]} Kg8 {[%emt 0:00:24]} 70. Bb3+ {[%emt 0:00:16]} Rf7 {[%emt 0:00:13]} 71. Bxf7+ {[%emt 0:00:22]} Kxf7 {[%emt 0:00:01]} 72. Rh7+ {[%emt 0:01:24]} Kg8 {[%emt 0:00:25]} 73. Rc7 {[%emt 0:00:09]} c5 {[%emt 0:00:22]} 74. bxc5 {[%emt 0:02:12]} e3+ {[%emt 0:00:05]} 75. c6 {[%emt 0:00:43]} Qb8 {[%emt 0:00:01]} 76. Qb3+ {[%emt 0:00:10]} Kh8 {[%emt 0:00:04]} 77. Qf7 {[%emt 0:00:08]} Qxc7 {[%emt 0:00:21]} 78. Qxc7 {[%emt 0:00:08]} 1-0

[Event "FIDE WCCC Girls-10 2024"]
[Site "Montesilvano"]
[Date "2024.11.19"]
[Round "5.8"]
[White "Pooja Shree R"]
[Black "Bhavanya Panchumarthi"]
[Result "1-0"]
[ECO "B72"]
[WhiteElo "1615"]
[BlackElo "1703"]
[Annotator "NA RC"]
[PlyCount "117"]
[EventDate "2024.11.18"]
[EventType "swiss"]
[EventCountry "ITA"]
[SourceTitle "playchess.com"]
[Source "ChessBase"]
[SourceQuality "1"]
[TimeControl "5400+30"]

1. e4 {[%emt 0:01:30]} c5 {[%emt 0:00:15]} 2. Nf3 {[%emt 0:00:50]} d6 {[%emt 0:00:18]} 3. d4 {[%emt 0:00:09]} cxd4 {[%emt 0:00:10]} 4. Nxd4 {[%emt 0:00:22]} Nf6 {[%emt 0:00:33]} 5. Nc3 {[%emt 0:00:07]} g6 {[%emt 0:00:48]} 6. Be3 {[%emt 0:00:42]} Nc6 {[%emt 0:00:13]} 7. f3 {[%emt 0:00:08]} h5 {[%emt 0:00:14]} 8. Qd2 {[%emt 0:03:06]} Nxd4 {[%emt 0:00:21]} 9. Bxd4 {[%emt 0:00:30]} Bh6 {[%emt 0:00:09]} 10. Be3 {[%emt 0:00:19]} Bxe3 {[%emt 0:00:09]} 11. Qxe3 {[%emt 0:00:02]} Be6 {[%emt 0:00:48]} 12. Bb5+ {[%emt 0:01:37]} Kf8 {[%emt 0:00:45]} 13. Ba4 {[%emt 0:16:34]} Qa5 {[%emt 0:02:20]} 14. Bb3 {[%emt 0:28:11]} Bxb3 {[%emt 0:07:31]} 15. cxb3 {[%emt 0:43:53]} Kg7 {[%emt 0:01:28]} 16. O-O-O {[%emt 0:00:00]} Rac8 {[%emt 0:03:08]} 17. Kb1 {[%emt 0:00:00]} Rc6 {[%emt 0:06:18]} 18. Rd4 {[%emt 0:00:00]} Qc5 {[%emt 0:10:26]} 19. Qd2 {[%emt 0:00:00]} b5 {[%emt 0:08:15]} 20. Nd5 {[%emt 0:00:00]} Nxd5 {[%emt 0:11:02]} 21. exd5 {[%emt 0:00:00]} Rc7 {[%emt 0:03:47]} 22. b4 {[%emt 0:00:00]} Qb6 {[%emt 0:05:12]} 23. g4 {[%emt 0:00:00]} hxg4 {[%emt 0:07:17]} 24. fxg4 {[%emt 0:00:00]} f6 {[%emt 0:03:46]} 25. h4 {[%emt 0:00:00]} Rcc8 {[%emt 0:05:22]} 26. Re4 {[%emt 0:00:00]} Rc7 {[%emt 0:00:38]} 27. Rhe1 {[%emt 0:00:40]} Kf7 {[%emt 0:01:05]} 28. Qe2 {[%emt 0:00:31]} Qb7 {[%emt 0:00:57]} 29. g5 {[%emt 0:01:07]} f5 {[%emt 0:00:33]} 30. Rd4 {[%emt 0:01:29]} a6 {[%emt 0:03:03]} 31. Rh1 {[%emt 0:02:43]} Rh5 {[%emt 0:00:40]} 32. Rf1 {[%emt 0:00:12]} Qc8 {[%emt 0:01:09]} 33. Rdf4 {[%emt 0:01:12]} Qh8 {[%emt 0:02:18]} 34. Qe6+ {[%emt 0:00:47]} Kg7 {[%emt 0:01:06]} 35. Qe3 {[%emt 0:00:35]} Kf7 {[%emt 0:01:31]} 36. Qe6+ {[%emt 0:00:40]} Kg7 {[%emt 0:01:02]} 37. Qe3 {[%emt 0:00:27]} Qc8 {[%emt 0:07:11]} 38. Qe2 {[%emt 0:00:19]} Qh8 {[%emt 0:00:13]} 39. Qd2 {[%emt 0:00:36]} Kf7 {[%emt 0:00:20]} 40. Qf2 {[%emt 0:00:38]} Qe5 {[%emt 0:02:58]} 41. Qf3 {[%emt 0:00:28]} Qh8 {[%emt 0:00:07]} 42. Rh1 {[%emt 0:00:34]} Qc8 {[%emt 0:02:13]} 43. Qe2 {[%emt 0:00:19]} e5 {[%emt 0:02:14]} 44. dxe6+ {[%emt 0:00:29]} Qxe6 {[%emt 0:00:04]} 45. Qf3 {[%emt 0:00:29]} d5 {[%emt 0:01:13]} 46. Rd1 {[%emt 0:00:15]} Rd7 {[%emt 0:01:09]} 47. Rfd4 {[%emt 0:00:16]} Rh8 {[%emt 0:00:36]} 48. a3 {[%emt 0:00:17]} Rhd8 {[%emt 0:00:40]} 49. h5 {[%emt 0:00:15]} gxh5 {[%emt 0:00:14]} 50. Qxh5+ {[%emt 0:00:35]} Qg6 {[%emt 0:00:05]} 51. Qh4 {[%emt 0:00:06]} Kg7 {[%emt 0:00:26]} 52. Qf4 {[%emt 0:00:19]} Qe6 {[%emt 0:01:15]} 53. g6 {[%emt 0:00:39]} Qxg6 {[%emt 0:00:42]} 54. Qe5+ {[%emt 0:01:38]} Qf6 {[%emt 0:00:05]} 55. Qg3+ {[%emt 0:00:32]} Qg6 {[%emt 0:00:16]} 56. Qf2 {[%emt 0:00:07]} Qf6 {[%emt 0:00:36]} 57. Rg1+ {[%emt 0:00:18]} Kf7 {[%emt 0:00:03]} 58. Rf4 {[%emt 0:00:06]} Ke6 {[%emt 0:00:37]} 59. Re1+ {[%emt 0:00:16]} 1-0

[Event "FIDE WCCC Girls-10 2024"]
[Site "Montesilvano"]
[Date "2024.11.19"]
[Round "5.9"]
[White "Zhumambayeva Aliya"]
[Black "Filippova, Milana"]
[Result "1/2-1/2"]
[ECO "D26"]
[WhiteElo "1607"]
[BlackElo "1687"]
[Annotator "NA RC"]
[PlyCount "129"]
[EventDate "2024.11.18"]
[EventType "swiss"]
[EventCountry "ITA"]
[SourceTitle "playchess.com"]
[Source "ChessBase"]
[SourceQuality "1"]
[TimeControl "5400+30"]

1. d4 {[%emt 0:00:05]} d5 {[%emt 0:00:00]} 2. c4 {[%emt 0:00:07]} e6 {[%emt 0:00:00]} 3. Nc3 {[%emt 0:00:04]} a6 {[%emt 0:00:00]} 4. e3 {[%emt 0:00:17]} Nf6 {[%emt 0:00:12]} 5. Nf3 {[%emt 0:00:05]} dxc4 {[%emt 0:00:08]} 6. Bxc4 {[%emt 0:00:17]} b5 {[%emt 0:00:09]} 7. Bb3 {[%emt 0:00:04]} Bb7 {[%emt 0:00:20]} 8. O-O {[%emt 0:00:11]} Nbd7 {[%emt 0:02:11]} 9. a3 {[%emt 0:01:55]} Be7 {[%emt 0:02:44]} 10. Bc2 {[%emt 0:00:20]} c5 {[%emt 0:00:19]} 11. Qe2 {[%emt 0:03:18]} cxd4 {[%emt 0:01:24]} 12. Nxd4 {[%emt 0:00:14]} O-O {[%emt 0:01:39]} 13. Rd1 {[%emt 0:00:39]} Qc7 {[%emt 0:01:37]} 14. h3 {[%emt 0:00:46]} Ne5 {[%emt 0:03:37]} 15. Bd2 {[%emt 0:07:55]} Qc4 {[%emt 0:05:09]} 16. Bb3 {[%emt 0:01:15]} Qxe2 {[%emt 0:00:13]} 17. Ncxe2 {[%emt 0:00:07]} Ne4 {[%emt 0:04:43]} 18. Bc3 {[%emt 0:02:18]} Nxc3 {[%emt 0:01:29]} 19. Nxc3 {[%emt 0:00:07]} Rfd8 {[%emt 0:05:58]} 20. Rac1 {[%emt 0:02:16]} Rac8 {[%emt 0:04:05]} 21. Nce2 {[%emt 0:04:41]} Nc4 {[%emt 0:03:03]} 22. Bxc4 {[%emt 0:00:37]} bxc4 {[%emt 0:00:15]} 23. f4 {[%emt 0:08:05]} Be4 {[%emt 0:02:12]} 24. Rc3 {[%emt 0:06:14]} Bf6 {[%emt 0:02:28]} 25. Kf2 {[%emt 0:05:00]} Bd5 {[%emt 0:11:02]} 26. Rdc1 {[%emt 0:05:59]} Rb8 {[%emt 0:00:52]} 27. R3c2 {[%emt 0:05:51]} Rb7 {[%emt 0:06:03]} 28. Nc3 {[%emt 0:00:53]} Bxd4 {[%emt 0:04:00]} 29. exd4 {[%emt 0:04:34]} Rdb8 {[%emt 0:01:14]} 30. Na4 {[%emt 0:05:15]} g6 {[%emt 0:00:32]} 31. Re1 {[%emt 0:11:23]} Rb3 {[%emt 0:04:49]} 32. Ree2 {[%emt 0:02:16]} Rd3 {[%emt 0:01:07]} 33. Rcd2 {[%emt 0:00:39]} Rxd2 {[%emt 0:01:14]} 34. Rxd2 {[%emt 0:00:04]} a5 {[%emt 0:00:39]} 35. Nc5 {[%emt 0:00:41]} Rb5 {[%emt 0:01:12]} 36. Na4 {[%emt 0:02:39]} Kf8 {[%emt 0:01:14]} 37. Nc3 {[%emt 0:02:08]} Rb3 {[%emt 0:00:10]} 38. Re2 {[%emt 0:01:10]} Rb8 {[%emt 0:03:08]} 39. Kg1 {[%emt 0:01:37]} Rd8 {[%emt 0:02:06]} 40. Rd2 {[%emt 0:01:15]} h5 {[%emt 0:00:41]} 41. g3 {[%emt 0:00:32]} Ke7 {[%emt 0:00:38]} 42. Kf2 {[%emt 0:02:27]} Kf6 {[%emt 0:00:33]} 43. Ke3 {[%emt 0:01:25]} Kf5 {[%emt 0:02:00]} 44. Rf2 {[%emt 0:01:23]} Rd7 {[%emt 0:01:24]} 45. Nd1 {[%emt 0:01:27]} g5 {[%emt 0:02:58]} 46. Nc3 {[%emt 0:01:35]} Rb7 {[%emt 0:00:54]} 47. Nd1 {[%emt 0:01:09]} f6 {[%emt 0:01:08]} 48. Nc3 {[%emt 0:01:04]} Rb8 {[%emt 0:01:19]} 49. Nd1 {[%emt 0:04:01]} Rb3+ {[%emt 0:01:38]} 50. Nc3 {[%emt 0:00:07]} Kg6 {[%emt 0:01:11]} 51. Rd2 {[%emt 0:01:25]} Kf5 {[%emt 0:01:58]} 52. Rf2 {[%emt 0:00:06]} Bc6 {[%emt 0:00:22]} 53. fxg5+ {[%emt 0:00:47]} Kxg5 {[%emt 0:00:15]} 54. Rd2 {[%emt 0:00:45]} f5 {[%emt 0:06:23]} 55. Rf2 {[%emt 0:00:09]} Be4 {[%emt 0:00:41]} 56. Rd2 {[%emt 0:00:50]} Bd3 {[%emt 0:00:52]} 57. Rf2 {[%emt 0:00:08]} Kh6 {[%emt 0:03:57]} 58. Kf4 {[%emt 0:00:10]} Rb7 {[%emt 0:01:38]} 59. Ke5 {[%emt 0:00:45]} Rd7 {[%emt 0:00:45]} 60. Rf4 {[%emt 0:01:13]} Rg7 {[%emt 0:01:24]} 61. Rf3 {[%emt 0:00:14]} Rd7 {[%emt 0:00:19]} 62. Rf4 {[%emt 0:00:08]} Rg7 {[%emt 0:00:18]} 63. Rf3 {[%emt 0:00:06]} Rd7 {[%emt 0:00:39]} 64. Rf4 {[%emt 0:00:28]} Rg7 {[%emt 0:00:09]} 65. Kxe6 {[%emt 0:07:15]} 1/2-1/2

[Event "FIDE WCCC Girls-10 2024"]
[Site "Montesilvano"]
[Date "2024.11.19"]
[Round "5.10"]
[White "Constantin-Ciuntu, Anne-Sophie"]
[Black "Nguyen Doan, Bao Anh Angelina"]
[Result "0-1"]
[ECO "B23"]
[WhiteElo "1672"]
[BlackElo "1628"]
[Annotator "NA RC"]
[PlyCount "111"]
[EventDate "2024.11.18"]
[EventType "swiss"]
[EventCountry "ITA"]
[SourceTitle "playchess.com"]
[Source "ChessBase"]
[SourceQuality "1"]
[TimeControl "5400+30"]

1. e4 {[%emt 0:00:02]} c5 {[%emt 0:00:06]} 2. Nc3 {[%emt 0:00:07]} Nc6 {[%emt 0:00:05]} 3. f4 {[%emt 0:00:15]} g6 {[%emt 0:00:17]} 4. Nf3 {[%emt 0:00:20]} Bg7 {[%emt 0:00:22]} 5. Bc4 {[%emt 0:00:39]} a6 {[%emt 0:01:36]} 6. a4 {[%emt 0:01:27]} e6 {[%emt 0:00:58]} 7. d3 {[%emt 0:02:29]} Nge7 {[%emt 0:03:19]} 8. O-O {[%emt 0:05:45]} O-O {[%emt 0:01:31]} 9. Qe1 {[%emt 0:06:28]} d5 {[%emt 0:02:33]} 10. Bb3 {[%emt 0:05:10]} Nd4 {[%emt 0:06:24]} 11. Nxd4 {[%emt 0:10:27]} cxd4 {[%emt 0:04:57]} 12. Nd1 {[%emt 0:06:56]} dxe4 {[%emt 0:02:09]} 13. Qxe4 {[%emt 0:02:27]} Qc7 {[%emt 0:07:56]} 14. Bd2 {[%emt 0:07:05]} Bd7 {[%emt 0:03:51]} 15. Nf2 {[%emt 0:09:46]} Bc6 {[%emt 0:02:18]} 16. Qe2 {[%emt 0:01:15]} Nf5 {[%emt 0:07:22]} 17. Ne4 {[%emt 0:02:48]} a5 {[%emt 0:04:26]} 18. Rf3 {[%emt 0:08:05]} Rfe8 {[%emt 0:15:41]} 19. Rh3 {[%emt 0:04:05]} Bd5 {[%emt 0:04:01]} 20. Rc1 {[%emt 0:09:02]} Qb6 {[%emt 0:03:58]} 21. g4 {[%emt 0:03:44]} Bxb3 {[%emt 0:03:19]} 22. cxb3 {[%emt 0:00:52]} Ne3 {[%emt 0:01:57]} 23. Nc5 {[%emt 0:01:24]} Red8 {[%emt 0:04:44]} 24. Qf3 {[%emt 0:02:47]} Rd5 {[%emt 0:02:34]} 25. b4 {[%emt 0:04:19]} axb4 {[%emt 0:02:52]} 26. Nb3 {[%emt 0:00:21]} Rxa4 {[%emt 0:02:38]} 27. Rc8+ {[%emt 0:00:51]} Rd8 {[%emt 0:01:10]} 28. Rxd8+ {[%emt 0:00:18]} Qxd8 {[%emt 0:00:02]} 29. Qxb7 {[%emt 0:00:37]} Qd5 {[%emt 0:02:42]} 30. Qxd5 {[%emt 0:00:49]} Nxd5 {[%emt 0:00:10]} 31. Kf2 {[%emt 0:01:20]} Ra2 {[%emt 0:02:00]} 32. Bc1 {[%emt 0:00:55]} Nxf4 {[%emt 0:03:29]} 33. Rf3 {[%emt 0:02:15]} Nd5 {[%emt 0:00:31]} 34. Ke1 {[%emt 0:00:38]} Ra6 {[%emt 0:01:17]} 35. Kd1 {[%emt 0:01:09]} Rc6 {[%emt 0:01:36]} 36. h3 {[%emt 0:00:42]} Ne3+ {[%emt 0:01:37]} 37. Bxe3 {[%emt 0:00:39]} dxe3 {[%emt 0:00:03]} 38. Rxe3 {[%emt 0:00:11]} Bxb2 {[%emt 0:00:16]} 39. Re4 {[%emt 0:00:16]} Bc3 {[%emt 0:00:25]} 40. d4 {[%emt 0:00:53]} Ra6 {[%emt 0:00:36]} 41. Nc5 {[%emt 0:00:39]} Ra1+ {[%emt 0:00:29]} 42. Kc2 {[%emt 0:00:10]} Rh1 {[%emt 0:00:24]} 43. Kb3 {[%emt 0:00:51]} Rxh3 {[%emt 0:00:08]} 44. Kc2 {[%emt 0:00:06]} h5 {[%emt 0:00:51]} 45. gxh5 {[%emt 0:00:39]} Rxh5 {[%emt 0:00:17]} 46. Nd7 {[%emt 0:00:46]} Kg7 {[%emt 0:00:29]} 47. Kb3 {[%emt 0:00:36]} Rd5 {[%emt 0:00:27]} 48. Nc5 {[%emt 0:00:34]} Rxd4 {[%emt 0:00:34]} 49. Re2 {[%emt 0:00:23]} Rd5 {[%emt 0:01:03]} 50. Na4 {[%emt 0:00:31]} g5 {[%emt 0:00:26]} 51. Rg2 {[%emt 0:00:35]} Kg6 {[%emt 0:00:25]} 52. Nb6 {[%emt 0:00:14]} Rd2 {[%emt 0:00:27]} 53. Rg3 {[%emt 0:00:18]} f5 {[%emt 0:00:26]} 54. Nc4 {[%emt 0:00:15]} Rh2 {[%emt 0:00:34]} 55. Re3 {[%emt 0:00:35]} Kf6 {[%emt 0:00:26]} 56. Nb6 {[%emt 0:00:26]} 0-1

[Event "FIDE WCCC Girls-10 2024"]
[Site "Montesilvano"]
[Date "2024.11.19"]
[Round "5.11"]
[White "Yi, Ruiyu"]
[Black "Wang, Yi Xuan"]
[Result "0-1"]
[ECO "D35"]
[WhiteElo "1571"]
[BlackElo "1668"]
[Annotator "NA RC"]
[PlyCount "131"]
[EventDate "2024.11.18"]
[EventType "swiss"]
[EventCountry "ITA"]
[SourceTitle "playchess.com"]
[Source "ChessBase"]
[SourceQuality "1"]
[TimeControl "5400+30"]

1. d4 {[%emt 0:00:03]} d5 {[%emt 0:00:12]} 2. c4 {[%emt 0:00:08]} e6 {[%emt 0:00:29]} 3. Nc3 {[%emt 0:00:10]} Nf6 {[%emt 0:00:07]} 4. cxd5 {[%emt 0:00:15]} exd5 {[%emt 0:00:14]} 5. Bg5 {[%emt 0:00:29]} c6 {[%emt 0:00:46]} 6. e3 {[%emt 0:00:08]} Be7 {[%emt 0:00:09]} 7. Bd3 {[%emt 0:00:13]} Nbd7 {[%emt 0:00:18]} 8. Nge2 {[%emt 0:00:19]} h6 {[%emt 0:01:04]} 9. Bh4 {[%emt 0:00:09]} Nh5 {[%emt 0:04:59]} 10. Bxe7 {[%emt 0:00:11]} Qxe7 {[%emt 0:00:07]} 11. O-O {[%emt 0:01:38]} O-O {[%emt 0:00:16]} 12. Ng3 {[%emt 0:01:44]} Nxg3 {[%emt 0:01:30]} 13. hxg3 {[%emt 0:00:07]} Nf6 {[%emt 0:02:17]} 14. Rb1 {[%emt 0:03:45]} Ng4 {[%emt 0:03:27]} 15. Re1 {[%emt 0:04:06]} Qg5 {[%emt 0:03:34]} 16. Be2 {[%emt 0:02:25]} Re8 {[%emt 0:11:32]} 17. Bxg4 {[%emt 0:00:56]} Bxg4 {[%emt 0:05:37]} 18. Qd2 {[%emt 0:02:14]} Bf5 {[%emt 0:03:52]} 19. Rbc1 {[%emt 0:00:58]} Re7 {[%emt 0:02:36]} 20. b4 {[%emt 0:00:23]} h5 {[%emt 0:07:41]} 21. b5 {[%emt 0:04:29]} h4 {[%emt 0:06:07]} 22. gxh4 {[%emt 0:00:34]} Qxh4 {[%emt 0:01:05]} 23. f3 {[%emt 0:04:06]} Rae8 {[%emt 0:08:38]} 24. Qf2 {[%emt 0:00:39]} Qg5 {[%emt 0:01:25]} 25. bxc6 {[%emt 0:02:48]} bxc6 {[%emt 0:01:13]} 26. Nd1 {[%emt 0:01:53]} Re6 {[%emt 0:03:51]} 27. Rc5 {[%emt 0:09:00]} Qh5 {[%emt 0:08:54]} 28. Qg3 {[%emt 0:02:19]} Rg6 {[%emt 0:01:51]} 29. Qf4 {[%emt 0:06:56]} Bh3 {[%emt 0:03:10]} 30. Rc2 {[%emt 0:01:40]} Ree6 {[%emt 0:01:38]} 31. Rf1 {[%emt 0:16:25]} Ref6 {[%emt 0:01:20]} 32. Qb8+ {[%emt 0:03:25]} Kh7 {[%emt 0:00:07]} 33. f4 {[%emt 0:00:20]} Qg4 {[%emt 0:03:36]} 34. Qb2 {[%emt 0:00:50]} Qg3 {[%emt 0:01:50]} 35. Rcf2 {[%emt 0:03:47]} Bg4 {[%emt 0:02:12]} 36. Qc2 {[%emt 0:02:06]} Rf5 {[%emt 0:01:31]} 37. e4 {[%emt 0:04:00]} Rh5 {[%emt 0:00:38]} 38. Rd2 {[%emt 0:02:01]} Qh2+ {[%emt 0:00:19]} 39. Kf2 {[%emt 0:00:09]} Qxf4+ {[%emt 0:00:04]} 40. Ke1 {[%emt 0:00:18]} Qxe4+ {[%emt 0:01:50]} 41. Qxe4 {[%emt 0:00:08]} dxe4 {[%emt 0:00:04]} 42. Ne3 {[%emt 0:01:03]} f5 {[%emt 0:01:00]} 43. d5 {[%emt 0:00:36]} cxd5 {[%emt 0:00:16]} 44. Rxd5 {[%emt 0:00:12]} Rgg5 {[%emt 0:01:42]} 45. Nxg4 {[%emt 0:00:33]} Rxg4 {[%emt 0:00:36]} 46. Rfxf5 {[%emt 0:01:04]} Rxf5 {[%emt 0:00:10]} 47. Rxf5 {[%emt 0:00:07]} Rxg2 {[%emt 0:00:15]} 48. Ra5 {[%emt 0:00:08]} Kg6 {[%emt 0:01:20]} 49. Rxa7 {[%emt 0:00:11]} Kf5 {[%emt 0:00:18]} 50. Kf1 {[%emt 0:00:10]} Rg3 {[%emt 0:00:51]} 51. Rf7+ {[%emt 0:00:32]} Ke5 {[%emt 0:00:24]} 52. a4 {[%emt 0:00:36]} g5 {[%emt 0:00:45]} 53. Kf2 {[%emt 0:00:19]} Ra3 {[%emt 0:00:24]} 54. Re7+ {[%emt 0:00:42]} Kf4 {[%emt 0:00:19]} 55. Rf7+ {[%emt 0:00:12]} Kg4 {[%emt 0:00:18]} 56. Ra7 {[%emt 0:00:11]} e3+ {[%emt 0:00:56]} 57. Ke2 {[%emt 0:00:16]} Kg3 {[%emt 0:00:24]} 58. Re7 {[%emt 0:00:41]} g4 {[%emt 0:00:35]} 59. a5 {[%emt 0:01:09]} Kg2 {[%emt 0:01:40]} 60. Rxe3 {[%emt 0:00:15]} Rxa5 {[%emt 0:00:12]} 61. Re4 {[%emt 0:01:44]} g3 {[%emt 0:00:14]} 62. Rg4 {[%emt 0:00:04]} Re5+ {[%emt 0:00:51]} 63. Kd3 {[%emt 0:01:20]} Kf3 {[%emt 0:00:41]} 64. Rg8 {[%emt 0:00:14]} g2 {[%emt 0:00:23]} 65. Rf8+ {[%emt 0:00:29]} Kg4 {[%emt 0:00:07]} 66. Kd4 {[%emt 0:22:28]} 0-1

[Event "FIDE WCCC Girls-10 2024"]
[Site "Montesilvano"]
[Date "2024.11.19"]
[Round "5.12"]
[White "Rzadkowska, Lila"]
[Black "Ahmadli, Mehriban"]
[Result "0-1"]
[ECO "E76"]
[WhiteElo "1765"]
[BlackElo "1624"]
[Annotator "NA RC"]
[PlyCount "60"]
[EventDate "2024.11.18"]
[EventType "swiss"]
[EventCountry "ITA"]
[SourceTitle "playchess.com"]
[Source "ChessBase"]
[SourceQuality "1"]
[TimeControl "5400+30"]

1. d4 {[%emt 0:00:03]} Nf6 {[%emt 0:00:08]} 2. c4 {[%emt 0:00:07]} g6 {[%emt 0:00:06]} 3. Nc3 {[%emt 0:00:06]} Bg7 {[%emt 0:00:18]} 4. e4 {[%emt 0:00:06]} d6 {[%emt 0:00:12]} 5. f4 {[%emt 0:00:12]} O-O {[%emt 0:00:22]} 6. Nf3 {[%emt 0:00:14]} c5 {[%emt 0:06:08]} 7. d5 {[%emt 0:00:11]} e6 {[%emt 0:03:09]} 8. dxe6 {[%emt 0:00:12]} Bxe6 {[%emt 0:00:09]} 9. Bd3 {[%emt 0:00:09]} Nc6 {[%emt 0:01:36]} 10. f5 {[%emt 0:01:27]} Bc8 {[%emt 0:03:24]} 11. O-O {[%emt 0:02:16]} Re8 {[%emt 0:05:25]} 12. Bg5 {[%emt 0:04:39]} h6 {[%emt 0:07:18]} 13. Bxf6 {[%emt 0:04:35]} Bxf6 {[%emt 0:03:54]} 14. Qd2 {[%emt 0:06:50]} g5 {[%emt 0:02:12]} 15. h3 {[%emt 0:07:16]} Bxc3 {[%emt 0:08:20]} 16. bxc3 {[%emt 0:02:44]} Ne5 {[%emt 0:01:46]} 17. h4 {[%emt 0:09:52]} Nxd3 {[%emt 0:03:44]} 18. Qxd3 {[%emt 0:00:14]} g4 {[%emt 0:07:47]} 19. Nd2 {[%emt 0:07:41]} Qxh4 {[%emt 0:08:42]} 20. Qxd6 {[%emt 0:05:30]} Qg5 {[%emt 0:04:24]} 21. Qf4 {[%emt 0:07:10]} Bd7 {[%emt 0:02:57]} 22. Nb3 {[%emt 0:02:58]} b6 {[%emt 0:00:49]} 23. Qc7 {[%emt 0:06:10]} Qe3+ {[%emt 0:04:40]} 24. Kh1 {[%emt 0:01:31]} Qg5 {[%emt 0:09:10]} 25. Kg1 {[%emt 0:05:24]} Rxe4 {[%emt 0:04:20]} 26. Rae1 {[%emt 0:06:22]} Rxe1 {[%emt 0:00:48]} 27. Rxe1 {[%emt 0:00:05]} Bxf5 {[%emt 0:01:30]} 28. Re5 {[%emt 0:07:35]} Rd8 {[%emt 0:01:16]} 29. Re1 {[%emt 0:05:58]} g3 {[%emt 0:01:00]} 30. Qc6 {[%emt 0:01:01]} Qe3+ {[%emt 0:00:23]} 0-1